Cogmind - Beta 10 @@@ ROGUE MODE // 2020.09.11 @ 19:42:15 Player: Nalzok Result: Destroyed by G-47 Trooper with Particle Gun Performance ------------- Evolutions (1) 500 Regions Visited (2) 400 Robots Destroyed (24) 120 Value Destroyed (470) 470 Prototype IDs (0) 0 Alien Tech Used (0) 0 Bonus (0) 0 TOTAL SCORE: 1490 Bonus ------- None Cogmind --------- Core Integrity 0/400 Matter 189/300 Energy 61/100 System Corruption 0% Temperature Cool (9) Movement Walking (180) Ox2 Location -9/Materials Parts ------- > --- POWER (1) -------- (None) > --- PROPULSION (2) --- Aluminum Leg Aluminum Leg > --- UTILITY (4) ------ Large Storage Unit High-capacity Storage Unit > --- WEAPON (2) ------- (None) > --- INVENTORY (18) --- Aluminum Leg Aluminum Leg Heavy Assault Rifle Heavy Assault Rifle Light Cannon Light Cannon Peak State ------------ > --- POWER ------------ Ion Engine > --- PROPULSION ------- Aluminum Leg Aluminum Leg > --- UTILITY ---------- Improved Heat Sink High-capacity Storage Unit > --- WEAPON ----------- Heavy Assault Rifle Heavy Assault Rifle > --- INVENTORY -------- Aluminum Leg Aluminum Leg Aluminum Leg Aluminum Leg Medium Storage Unit Assault Rifle Heavy Assault Rifle Heavy Assault Rifle [Rating: 12] Favorites ----------- Power Ion Engine Engine Ion Engine Propulsion Aluminum Leg Leg Aluminum Leg Utility High-capacity Storage Unit Device Improved Heat Sink Storage High-capacity Storage Unit Weapon Heavy Assault Rifle Energy Gun EM Pulse Gun Ballistic Gun Heavy Assault Rifle Ballistic Cannon Light Cannon Build | -11 -10 -9 ------- Run | Scr Mat Mat Slots Evolved 2 | . . 2 Power . | . . . Propulsion . | . . . Utility 2 | . . 2 Weapon . | . . . Parts Attached 24 | . 18 6 Power 2 | . 2 . Engine 2 | . 2 . Core . | . . . Reactor . | . . . Propulsion 10 | . 8 2 Treads . | . . . Leg 10 | . 8 2 Wheel . | . . . Hover . | . . . Flight . | . . . Utility 5 | . 4 1 Device 1 | . 1 . Storage 4 | . 3 1 Processor . | . . . Hackware . | . . . Protection . | . . . Artifact . | . . . Weapon 7 | . 4 3 Energy Gun 1 | . 1 . Energy Cannon . | . . . Ballistic Gun 3 | . 3 . Ballistic Cannon 3 | . . 3 Launcher . | . . . Special Weapon . | . . . Impact Weapon . | . . . Slashing Weapon . | . . . Piercing Weapon . | . . . Special Melee Weapon . | . . . Unidentified Prototypes . | . . . Parts Lost 13 | . 4 9 Power 2 | . 1 1 Propulsion 3 | . 1 2 Utility 1 | . . 1 Weapon 7 | . 2 5 Highest Loss Streak 6 | . 3 6 Average Slot Usage (%) 87 | . 95 67 Engine 12 | . 13 8 Leg 25 | . 27 21 Device 9 | . 10 5 Storage 12 | . 13 11 Energy Gun 3 | . 4 . Ballistic Gun 21 | . 23 14 Ballistic Cannon 1 | . . 6 Naked Turns . | . . . Heaviest Build 48 | 10 44 48 Greatest Support 20 | 20 20 20 Greatest Overweight (x) 12 | . 4 12 Average Overweight (x) 1 | . 1 1 Largest Inventory Capacity 18 | 6 12 18 Average Capacity 10 | 6 9 12 Most Carried 12 | 5 12 12 Average Carried 9 | 3 8 11 Final Capacity 18 | 6 12 18 Final Carried 12 | 2 12 6 Class Distribution -------------------- 66% | Scavenger-Mutant 33% | Mutant Dominant Class ---------------- Scavenger-Mutant | -10/Materials Mutant | -9/Materials Resources | -11 -10 -9 ----------- Run | Scr Mat Mat Matter Collected 698 | 200 361 137 Remotely . | . . . Salvage Created 653 | . 475 178 Parts 49 | . 35 14 Haulers Intercepted 1 | . 1 . Recyclers Shooed 3 | . . 3 Parts Field Recycled . | . . . Retrieved Matter . | . . . Parts Self-Destructed . | . . . Prevented . | . . . Kills | -11 -10 -9 ------- Run | Scr Mat Mat Combat Hostiles Destroyed 18 | . 12 6 Guns 14 | . 10 4 Cannons 2 | . . 2 AOE 2 | . 2 . Classes Destroyed 8 | . 6 2 Worker 2 | . 2 . Builder 1 | . 1 . Hauler 1 | . 1 . Recycler 1 | . . 1 Watcher 1 | . 1 . Swarmer 10 | . 6 4 Grunt 7 | . 6 1 Sentry 1 | . . 1 Best Kill Streak 6 | . 6 4 Combat Bots Only 5 | . 5 4 Max Kills in Single Turn 2 | . 2 1 Gunslinging . | . . . Exploded 2 | . 2 . Melee . | . . . Uniques/NPCs Destroyed . | . . . Combat | -11 -10 -9 -------- Run | Scr Mat Mat Damage Taken 2164 | . 872 1292 Core 534 | . 121 413 Absorbed by Shields . | . . . Core Remaining (%) 75 | 100 51 . Volleys Fired 74 | . 43 31 Largest 2 | . 2 2 Hottest 80 | . 80 70 Shots Fired 147 | . 86 61 Gun 117 | . 86 31 Cannon 30 | . . 30 Launcher . | . . . Special . | . . . Kinetic 133 | . 72 61 Thermal . | . . . Explosive . | . . . Electromagnetic 14 | . 14 . Robot Hit Streak 12 | . 12 4 Robot Miss Streak 5 | . 5 5 Penetration Max . | . . . Secondary Targets 3 | . 3 . Max Gunslinging Chain 1 | . 1 . Shots Hit Robots 84 | . 52 32 Core Hits 36 | . 24 12 Critical Hits . | . . . Critical Kills . | . . . Critical Parts Destroyed . | . . . Melee Attacks . | . . . Impact . | . . . Slashing . | . . . Piercing . | . . . Sneak Attacks . | . . . Combat Hostiles . | . . . Follow-up Attacks . | . . . Damage Inflicted 1388 | . 903 485 Guns 914 | . 731 183 Cannons 302 | . . 302 Explosions 172 | . 172 . Melee . | . . . Ramming . | . . . Kinetic 1161 | . 676 485 Thermal 71 | . 71 . Explosive 101 | . 101 . Electromagnetic 55 | . 55 . Impact . | . . . Slashing . | . . . Piercing . | . . . Highest Corruption . | . . . Average Corruption . | . . . Corruption Purged . | . . . Overload Shots . | . . . Overflow Damage 101 | . 101 . Projectiles . | . . . Explosions 101 | . 101 . Melee . | . . . Knockbacks . | . . . Impact . | . . . Kinetic . | . . . Secondary . | . . . Self-Inflicted Damage 235 | . 235 . Shots 3 | . 3 . Rammed . | . . . Targets Rammed . | . . . Kicked . | . . . Crushed . | . . . Highest Temperature 123 | . 123 42 Average Temperature 41 | . 56 16 Received Heat Transfer 489 | . 192 297 Siege Activations . | . . . Robots Corrupted . | . . . Combat Hostiles . | . . . Parts Fried . | . . . Impact Corruptions . | . . . Robots Melted . | . . . Combat Hostiles . | . . . Parts Melted . | . . . Heat Transferred 100 | . 100 . Parts Sabotaged . | . . . Parts Stolen . | . . . Parts Stripped . | . . . Power Chain Reactions 1 | . 1 . Missiles Intercepted . | . . . Alert | -11 -10 -9 ------- Run | Scr Mat Mat Peak Influence 171 | . 171 140 Initial 8 | . . 8 Average 79 | . 91 51 Maximum Alert Level . | . . . Low Security (%) 100 | 100 100 100 Level 1 . | . . . Level 2 . | . . . Level 3 . | . . . Level 4 . | . . . Level 5 . | . . . High Security . | . . . Max Security . | . . . Squads Dispatched 2 | . 1 1 Investigation . | . . . Extermination . | . . . Reinforcement 2 | . 1 1 Assault . | . . . Garrison . | . . . Intercept . | . . . Construction Impeded . | . . . Haulers Reinforced . | . . . Stealth | -11 -10 -9 --------- Run | Scr Mat Mat Distress Signals . | . . . Communications Jammed . | . . . Distress Signals . | . . . Times Spotted 44 | . 22 22 Peak Tracking Total 10 | . 5 10 Tactical Retreats 3 | . . 3 Traps | -11 -10 -9 ------- Run | Scr Mat Mat Traps Triggered . | . . . Indirectly . | . . . Trap Hack Attempts . | . . . Triggered . | . . . Disarmed . | . . . Reprogrammed . | . . . Reused . | . . . Traps Extracted . | . . . Installed . | . . . Triggered . | . . . Machines | -11 -10 -9 ---------- Run | Scr Mat Mat Machines Disabled 3 | . 2 1 Max in Single Turn 2 | . 2 1 Machines Sabotaged . | . . . Garrisons Compromised . | . . . Overloaded Fab Kills . | . . . Fab Network Shutdowns . | . . . Hacking | -11 -10 -9 --------- Run | Scr Mat Mat Machines Accessed 11 | . 7 4 Terminals 8 | . 4 4 Fabricators . | . . . Repair Stations 1 | . 1 . Recycling Units 2 | . 2 . Scanalyzers . | . . . Garrison Access . | . . . Total Hacks 29 | . 18 11 Successful 17 | . 8 9 Failed 12 | . 10 2 Catastrophic 3 | . 1 2 Database Lockouts . | . . . Manual 14 | . 7 7 Terminals 20 | . 9 11 Fabricators . | . . . Repair Stations 3 | . 3 . Recycling Units 6 | . 6 . Scanalyzers . | . . . Garrison Access . | . . . Terminal Hacks 8 | . 3 5 Level Access Points 1 | . . 1 Branch Access Points 1 | . . 1 Repair Station Index 1 | . 1 . Unreport Threat 4 | . 1 3 Zone Layout 1 | . 1 . Fabricator Hacks . | . . . Repair Station Hacks 2 | . 2 . Scan Component 1 | . 1 . Repair 1 | . 1 . Recycling Unit Hacks 3 | . 3 . Report Inventory 1 | . 1 . Retrieve Matter 1 | . 1 . Retrieve Components 1 | . 1 . Scanalyzer . | . . . Garrison Access Hacks . | . . . Unauthorized Hacks 4 | . . 4 Terminals 4 | . . 4 Botnet 3 | . . 3 Operators 1 | . . 1 Fabricators . | . . . Repair Stations . | . . . Recycling Units . | . . . Scanalyzers . | . . . Garrison Access . | . . . Data Cores Recovered . | . . . Used . | . . . Hacking Detections 8 | . 4 4 Full Trace Events . | . . . Feedback Events . | . . . Feedback Blocked . | . . . Robot Schematics Acquired . | . . . Robots Built . | . . . Matter . | . . . Time . | . . . Total Robot Build Rating . | . . . Part Schematics Acquired . | . . . Parts Built . | . . . Matter . | . . . Time . | . . . Total Part Build Rating . | . . . Parts Repaired 1 | . 1 . Time 26 | . 26 . Parts Recycled . | . . . Recycled Matter . | . . . Retrieved Matter . | . . . Retrieved Components 2 | . 2 . Parts Scanalyzed . | . . . Part Schematics Acquired . | . . . Parts Damaged . | . . . Bothacking | -11 -10 -9 ------------ Run | Scr Mat Mat Used RIF Installer . | . . . Robots Hacked . | . . . Non-combat . | . . . Combat . | . . . Robot Hacks Applied . | . . . Relay Couplers Released . | . . . Robots Rewired . | . . . Allies Hacked . | . . . Hacks Repelled . | . . . Allies | -11 -10 -9 -------- Run | Scr Mat Mat Total Allies . | . . . Largest Group . | . . . Highest-Rated Group . | . . . Highest-Rated Ally . | . . . Total Orders . | . . . Ally Attacks . | . . . Total Damage . | . . . Kills . | . . . Allies Corrupted . | . . . Allies Melted . | . . . Intel | -11 -10 -9 ------- Run | Scr Mat Mat Robot Analysis Total . | . . . Derelict Logs Recovered . | . . . Drone Launches . | . . . Drone Recoveries . | . . . Exploration | -11 -10 -9 ------------- Run | Scr Mat Mat Turns Passed 1212 | 3 854 355 Spaces Moved 580 | 1 439 140 Core 1 | . . 1 Treads . | . . . Legs 579 | 1 439 139 Wheels . | . . . Hover . | . . . Flight . | . . . Fastest Speed 120 | 120 120 150 Average Speed 157 | 120 151 178 Slowest Speed 650 | 120 240 650 Overloaded Moves . | . . . Propulsion Burnouts . | . . . Robots Hopped . | . . . Cave-ins Triggered . | . . . Exploration Rate (%) 29 | 2 64 22 Regions Visited 2 Branch Regions . Pre-discovered Areas . | . . . Known Exits Taken . | . . . Unknown Exits Taken 2 | 1 1 . Scrap Searched . | . . . Spaces Dug . | . . . Terrain Destroyed 42 | . 42 . Melee . | . . . Projectile . | . . . AOE 42 | . 42 . Terrain Rammed . | . . . Walls Destroyed . | . . . Machines Disabled . | . . . Actions | -11 -10 -9 --------- Run | Scr Mat Mat Total 731 | 4 544 183 Wait 23 | . 17 6 Move 578 | . 438 140 Hop . | . . . Pick Up 20 | . 20 . Fast Attach 3 | . 3 . Attach 10 | . 4 6 Detach . | . . . Swap 11 | . 11 . Drop 12 | 4 8 . Fire 74 | . 43 31 Melee . | . . . Ram . | . . . Kick . | . . . Crush . | . . . Escape Stasis . | . . . Rewire . | . . . Trap . | . . . Miscellaneous . | . . . Route ------- -11/Scrapyard -10/Materials (discovered 2 exits: *Mat x2) -9/Materials (discovered 5 exits: Mat x3 / Min / Sto) History --------- Turn | Location | Event 4 | -11/Scrapyard | Discovered new exit (range 0) 4 | -11/Scrapyard | Entered Materials 166 | -10/Materials | Lost 3 parts (1p2w) 236 | -10/Materials | Discovered new exit (range 8) 603 | -10/Materials | Discovered new exit (range 16) 732 | -10/Materials | Repaired Hcp. Storage Unit 757 | -10/Materials | Build established: Scavenger-Mutant 858 | -10/Materials | Entered another Materials area 858 | -9/Materials | Evolved 2 slots: Utility x2 864 | -9/Materials | Identified exit to Materials 1164 | -9/Materials | Identified exit to Mines 1164 | -9/Materials | Identified exit to Storage 1194 | -9/Materials | Core integrity fell below 50% 1207 | -9/Materials | Core integrity fell below 20% 1213 | -9/Materials | Destroyed by G-47 Trooper with Particle Gun Last Messages --------------- >>Access(Branch) Found 2 branch access points: (49,48) Mines (32,44) Storage Map updated. 01176_ C-30 ARC bursts open, deploying its payload. 01176_ S-10 Pest unfolds itself. 01177_ Terminal disabled. 01179_ K-01 Serf collects debris. 01180_ G-34 Mercenary destroyed. 01183_ K-01 Serf collects debris. 01184_ Assault Rifle destroyed. 01184_ Lgt. Cannon destroyed. 01186_ K-01 Serf collects debris. 01192_ Aluminum Leg destroyed. 01193_ K-01 Serf collects debris. 01199_ Destroyed Flight Unit. 01199_ K-01 Serf collects debris. 01203_ Lgt. Cannon destroyed. 01206_ K-01 Serf collects debris. Map ----- +----------------------------------------------------+ | ??????????>??????????????????????????????????????? | | ?????????????????????????????????????????????????? | | ?????????????????????????????????????????????????? | | ?????????????????????????????????????????????????? | | ?????????????????????????????????????????????????? | | ?????????????????????????????????????????????????? | | ?????????????????????????????????????????????????? | | ?? ???????????????? ?????????????????????????? | | ?# #??????????????? ?????????????????????????? | | ?# +????????????? "????????????????????????? | | ?#o #?????????????" "????????????????????????? | | ?# #?????????????" ""???#???????????????????? | | ?# #?????????????"u ""?? #???????????????????? | | ?# ########??????" ?? #???????????????????? | | ?# ???????? gg ? #???????????????????? | | ?# ???????? ""? #???????????????????? | | ?# ?????????? """ #???????????????????? | | ?# #?????????? """ #???????????????????? | | ?# #??????????# """ #???????????????????? | | ## ^""" =##?????????# """ #???????????????????? | | """ ##????????# ######??????????????? | | """ +????????# ^ ????????????? | | ^ #?????????# #???????????????????? | | # #?????????# ks #???????????????????? | | # [ """ #?????????# s g #???????????????????? | | # """ #?????????#s s@r! #???????????????????? | | # """ ###########% ####????????????????? | | # """ #????????????????? | | # #????????????????? | | # = #????????????????? | | # #######+###########+##### +????????????????? | | # #?# [= #???????????? #????????????????? | | # #?# #????????????? #????????????????? | | # #?# #?????????????? #????????????????? | | # #?# #?????????????? ????????????????? | | + ?+ """ """#??????????????? ???????????????? | | # #?# """ R"#???????????????? ??????????????? | | # ??# """ """#?????????????????#??????????????? | | # ??# #????????????????????????????????? | | +?????###########????????????????????????????????? | | ?????????????????????????????????????????????????? | | ?????????????????????????????????????????????????? | | ????????????????????????????????????????????????